Cogmind - Beta 11 @@@ ROGUE MODE // 2022.03.27 @ 17:11:45 Player: Red Box Result: Destroyed by 8R-AWN with 8R-AWN's Boregun Performance ------------- Evolutions (0) 0 Regions Visited (3) 600 Robots Destroyed (25) 125 Value Destroyed (621) 621 Prototype IDs (6) 120 Alien Tech Used (0) 0 Bonus (0) 0 TOTAL SCORE: 1466 Bonus ------- None Cogmind --------- Core Integrity 0/250 Matter 204/300 Energy 276/280 System Corruption 4% Temperature Cool (2) Movement Treading (160) Location -10/Exiles Parts ------- > --- POWER (1) -------- Heavy Ion Engine > --- PROPULSION (2) --- Light Treads Improved Treads > --- UTILITY (2) ------ Large Storage Unit Targeting Computer > --- WEAPON (2) ------- Light Cannon Improved Light Cannon > --- INVENTORY (15) --- Heavy Ion Engine Light Treads Improved Heat Sink Large Storage Unit High-capacity Matter Pod (200) Utility Shielding Medium Armor Plating Heavy Assault Rifle Light Cannon Improved Light Cannon Improved Light Cannon Improved Light Cannon Makeshift Hammer Peak State ------------ > --- POWER ------------ Heavy Ion Engine > --- PROPULSION ------- Light Treads Improved Treads > --- UTILITY ---------- Large Storage Unit Targeting Computer > --- WEAPON ----------- Light Cannon Improved Light Cannon > --- INVENTORY -------- Heavy Ion Engine Light Treads Improved Heat Sink Large Storage Unit High-capacity Matter Pod Utility Shielding Medium Armor Plating Heavy Assault Rifle Light Cannon Improved Light Cannon Improved Light Cannon Improved Light Cannon Makeshift Hammer [Rating: 13] Favorites ----------- Power Heavy Ion Engine Engine Heavy Ion Engine Propulsion Wheel Treads Light Treads Leg Aluminum Leg Wheel Wheel Utility Large Storage Unit Device Improved Terrain Scanner Storage Large Storage Unit Processor Targeting Computer Weapon Light Cannon Energy Gun Medium Laser Ballistic Cannon Light Cannon Launcher Mini Grenade Launcher Build | -11 -10 -10 -10 ------- Run | Scr Mat Min Exi Slots Evolved . | . . . . Power . | . . . . Propulsion . | . . . . Utility . | . . . . Weapon . | . . . . Parts Attached 30 | 7 16 4 3 Power 3 | 1 2 . . Engine 3 | 1 2 . . Core . | . . . . Reactor . | . . . . Propulsion 11 | 2 6 2 1 Treads 3 | . . 2 1 Leg 3 | 2 1 . . Wheel 5 | . 5 . . Hover . | . . . . Flight . | . . . . Utility 5 | 2 3 . . Device 1 | 1 . . . Storage 3 | 1 2 . . Processor 1 | . 1 . . Hackware . | . . . . Protection . | . . . . Artifact . | . . . . Weapon 11 | 2 5 2 2 Energy Gun 2 | 2 . . . Energy Cannon . | . . . . Ballistic Gun . | . . . . Ballistic Cannon 7 | . 5 1 1 Launcher 2 | . . 1 1 Special Weapon . | . . . . Impact Weapon . | . . . . Slashing Weapon . | . . . . Piercing Weapon . | . . . . Special Melee Weapon . | . . . . Unidentified Prototypes 1 | . 1 . . Parts Lost 7 | . 4 1 2 Power 1 | . 1 . . Propulsion 4 | . 2 1 1 Utility . | . . . . Weapon 2 | . 1 . 1 Highest Loss Streak 3 | . 3 1 2 To Critical Strikes 1 | . . . 1 Average Slot Usage (%) 98 | . 97 99 100 Engine 12 | . 12 14 14 Treads 9 | . . 24 28 Leg 4 | . 7 . . Wheel 13 | . 20 2 . Device 1 | . 1 . . Storage 14 | . 14 14 14 Processor 12 | . 12 14 14 Energy Gun 1 | . 3 . . Ballistic Cannon 25 | . 24 27 24 Naked Turns . | . . . . Heaviest Build 35 | 14 34 34 35 Greatest Support 43 | 20 32 40 43 Greatest Overweight (x) 3 | 2 3 3 . Average Overweight (x) . | . 1 . . Largest Inventory Capacity 15 | 8 15 15 15 Average Capacity 14 | 7 14 15 15 Most Carried 15 | 7 15 15 15 Average Carried 13 | 4 14 14 14 Final Capacity 15 | 8 15 15 15 Final Carried 15 | 7 15 15 13 Class Distribution -------------------- 100% | Mutant Dominant Class ---------------- Mutant | -10/Materials Mutant | -10/Mines Mutant | -10/Exiles Resources | -11 -10 -10 -10 ----------- Run | Scr Mat Min Exi Matter Collected 1162 | 270 784 108 . Remotely . | . . . . Salvage Created 687 | 43 510 107 27 Parts 40 | 6 28 6 . Haulers Intercepted 2 | . 2 . . Recyclers Shooed . | . . . . Parts Field Recycled . | . . . . Retrieved Matter . | . . . . Parts Self-Destructed . | . . . . Prevented . | . . . . Kills | -11 -10 -10 -10 ------- Run | Scr Mat Min Exi Combat Hostiles Destroyed 21 | . 11 5 5 Cannons 17 | . 11 4 2 AOE 4 | . . 1 3 Classes Destroyed 8 | 1 4 2 1 Tunneler 2 | 2 . . . Hauler 2 | . 2 . . Recycler 2 | . 2 . . Watcher 3 | . 3 . . Swarmer 3 | . . 3 . Grunt 11 | . 11 . . Sentry 2 | . . 2 . Assembled 5 | . . . 5 Best Kill Streak 5 | 2 3 3 5 Combat Bots Only 5 | . 3 3 5 Max Kills in Single Turn 3 | 1 1 1 3 Gunslinging . | . . . . Exploded 3 | . . 1 3 Melee . | . . . . Uniques/NPCs Destroyed . | . . . . Combat | -11 -10 -10 -10 -------- Run | Scr Mat Min Exi Damage Taken 1145 | . 658 128 359 Core 254 | . 135 43 76 Absorbed by Shields . | . . . . Regen/Repaired (Parts) 68 | . 68 . . Core Remaining (%) 100 | 100 . . . Volleys Fired 75 | 5 58 5 7 Largest 2 | 2 2 2 2 Hottest 90 | 90 70 70 65 Shots Fired 150 | 10 117 10 13 Gun 10 | 10 . . . Cannon 135 | . 117 9 9 Launcher 5 | . . 1 4 Special . | . . . . Kinetic 135 | . 117 9 9 Thermal 10 | 10 . . . Explosive 5 | . . 1 4 Electromagnetic . | . . . . Robot Hit Streak 13 | 6 13 11 2 Robot Miss Streak 5 | 1 5 . 3 Penetration Max . | . . . . Secondary Targets . | . . . . Shots Hit Robots 87 | 9 67 8 3 Core Hits 38 | 2 21 7 8 Critical Kills . | . . . . Critical Parts Destroyed . | . . . . Critical Strikes 6 | 1 4 1 . Burn 1 | 1 . . . Blast 5 | . 4 1 . Melee Attacks . | . . . . Impact . | . . . . Slashing . | . . . . Piercing . | . . . . Sneak Attacks . | . . . . Combat Hostiles . | . . . . Follow-up Attacks . | . . . . Damage Inflicted 1924 | 105 1295 190 334 Guns 105 | 105 . . . Cannons 1483 | . 1295 141 47 Explosions 336 | . . 49 287 Melee . | . . . . Ramming . | . . . . Kinetic 1483 | . 1295 141 47 Thermal 105 | 105 . . . Explosive 336 | . . 49 287 Electromagnetic . | . . . . Impact . | . . . . Slashing . | . . . . Piercing . | . . . . Highest Corruption 4 | . 4 4 4 Average Corruption 3 | . 3 4 4 Corruption Purged . | . . . . Corruption Blocked . | . . . . Effects 29 | . 9 16 4 Message Errors 5 | . 1 4 . Matter Fused 6 | . 3 3 . Heat Flow Errors 6 | . . 6 . Energy Discharges 3 | . 2 1 . Data Loss (minor) 3 | . 1 1 1 Data Loss (major) 1 | . 1 . . Misfires 5 | . 1 1 3 Overload Shots . | . . . . Overflow Damage 15 | . 15 . . Projectiles 15 | . 15 . . Explosions . | . . . . Melee . | . . . . Knockbacks 16 | . 14 2 . Impact . | . . . . Kinetic 14 | . 12 2 . Secondary 2 | . 2 . . Self-Inflicted Damage . | . . . . Shots . | . . . . Rammed . | . . . . Targets Rammed . | . . . . Kicked . | . . . . Crushed . | . . . . Highest Temperature 266 | 150 135 266 42 Average Temperature 65 | 78 56 93 13 Received Heat Transfer 372 | . 354 18 . Siege Activations . | . . . . Robots Corrupted . | . . . . Combat Hostiles . | . . . . Parts Fried . | . . . . Impact Corruptions . | . . . . Robots Melted . | . . . . Combat Hostiles . | . . . . Parts Melted 1 | 1 . . . Heat Transferred 359 | 359 . . . Parts Sabotaged . | . . . . Parts Stolen . | . . . . Parts Stripped . | . . . . Power Chain Reactions . | . . . . Missiles Intercepted . | . . . . Alert | -11 -10 -10 -10 ------- Run | Scr Mat Min Exi Peak Influence 223 | 10 223 127 . Initial 6 | . 6 . . Average 58 | 2 71 41 . Maximum Alert Level 1 | . 1 . . Low Security (%) 98 | 100 98 100 . Level 1 1 | . 1 . . Level 2 . | . . . . Level 3 . | . . . . Level 4 . | . . . . Level 5 . | . . . . High Security . | . . . . Max Security . | . . . . Squads Dispatched 3 | . 3 . . Investigation 3 | . 3 . . Extermination . | . . . . Reinforcement . | . . . . Assault . | . . . . Garrison . | . . . . Intercept . | . . . . Searches Triggered . | . . . . Construction Impeded . | . . . . Haulers Reinforced . | . . . . Active Scanning Responses . | . . . . Cargo Convoy Interrupts . | . . . . Stealth | -11 -10 -10 -10 --------- Run | Scr Mat Min Exi Distress Signals 2 | . 2 . . Communications Jammed . | . . . . Distress Signals . | . . . . Times Spotted 37 | . 24 5 8 Peak Tracking Total 9 | . 5 3 9 Tactical Retreats 2 | . 2 . . Traps | -11 -10 -10 -10 ------- Run | Scr Mat Min Exi Traps Triggered 5 | . 5 . . Indirectly . | . . . . Trap Hack Attempts . | . . . . Triggered . | . . . . Disarmed . | . . . . Reprogrammed . | . . . . Reused . | . . . . Traps Extracted . | . . . . Installed . | . . . . Triggered . | . . . . Machines | -11 -10 -10 -10 ---------- Run | Scr Mat Min Exi Machines Disabled 5 | . 1 . 4 Max in Single Turn 1 | . 1 . 1 Machines Sabotaged . | . . . . Garrisons Compromised . | . . . . Overloaded Fab Kills . | . . . . Hacking | -11 -10 -10 -10 --------- Run | Scr Mat Min Exi Machines Accessed 11 | . 11 . . Terminals 8 | . 8 . . Fabricators . | . . . . Repair Stations 1 | . 1 . . Recycling Units 2 | . 2 . . Scanalyzers . | . . . . Garrison Access . | . . . . Total Hacks 31 | . 31 . . Successful 19 | . 19 . . Failed 12 | . 12 . . Catastrophic 1 | . 1 . . Database Lockouts . | . . . . Manual 16 | . 16 . . Terminals 24 | . 24 . . Fabricators . | . . . . Repair Stations 2 | . 2 . . Recycling Units 5 | . 5 . . Scanalyzers . | . . . . Garrison Access . | . . . . Terminal Hacks 11 | . 11 . . Part Schematic 1 | . 1 . . Robot Analysis 3 | . 3 . . Prototype ID Bank 4 | . 4 . . Terminal Index 1 | . 1 . . Alert Level 1 | . 1 . . Locate Traps 1 | . 1 . . Fabricator Hacks . | . . . . Repair Station Hacks 2 | . 2 . . Scan Component 1 | . 1 . . Repair 1 | . 1 . . Recycling Unit Hacks 2 | . 2 . . Retrieve Components 2 | . 2 . . Scanalyzer . | . . . . Garrison Access Hacks . | . . . . Unauthorized Hacks 4 | . 4 . . Terminals 3 | . 3 . . Botnet 2 | . 2 . . Operators 1 | . 1 . . Fabricators . | . . . . Repair Stations . | . . . . Recycling Units 1 | . 1 . . Reject 1 | . 1 . . Scanalyzers . | . . . . Garrison Access . | . . . . Data Cores Recovered . | . . . . Used . | . . . . Hacking Detections 11 | . 11 . . Full Trace Events 1 | . 1 . . Feedback Events . | . . . . Feedback Blocked . | . . . . Robot Schematics Acquired . | . . . . Robots Built . | . . . . Authchips . | . . . . Time . | . . . . Total Robot Build Rating . | . . . . Part Schematics Acquired 1 | . 1 . . Parts Built . | . . . . Authchips . | . . . . Time . | . . . . Total Part Build Rating . | . . . . Parts Repaired 1 | . 1 . . Time 32 | . 32 . . Parts Recycled . | . . . . Recycled Matter . | . . . . Retrieved Matter . | . . . . Retrieved Components 7 | . 7 . . Parts Scanalyzed . | . . . . Part Schematics Acquired . | . . . . Parts Damaged . | . . . . Bothacking | -11 -10 -10 -10 ------------ Run | Scr Mat Min Exi Used RIF Installer . | . . . . Robots Hacked . | . . . . Non-combat . | . . . . Combat . | . . . . Robot Hacks Applied . | . . . . Relay Couplers Released . | . . . . Fabnet Peak Effective % . | . . . . Robots Rewired . | . . . . Allies Hacked . | . . . . Hacks Repelled . | . . . . Allies | -11 -10 -10 -10 -------- Run | Scr Mat Min Exi Total Allies 1 | . . 1 . Largest Group 1 | . . 1 1 Highest-Rated Group 31 | . . 31 31 Highest-Rated Ally 31 | . . 31 31 Total Orders . | . . . . Ally Attacks 11 | . . . 11 Total Damage 151 | . . . 151 Kills 3 | . . . 3 Allies Corrupted . | . . . . Allies Melted . | . . . . Intel | -11 -10 -10 -10 ------- Run | Scr Mat Min Exi Robot Analysis Total 3 | . 3 . . Derelict Logs Recovered 1 | . . 1 . Drone Launches . | . . . . Drone Recoveries . | . . . . Exploration | -11 -10 -10 -10 ------------- Run | Scr Mat Min Exi Turns Passed 2323 | 88 1374 728 133 Spaces Moved 1591 | 51 1005 464 71 Core 8 | 8 . . . Treads 461 | . . 390 71 Legs 117 | 43 74 . . Wheels 1005 | . 931 74 . Hover . | . . . . Flight . | . . . . Fastest Speed 50 | 50 95 95 160 Average Speed 121 | 110 106 150 160 Slowest Speed 160 | 150 125 160 160 Overloaded Moves . | . . . . Propulsion Burnouts . | . . . . Robots Hopped . | . . . . Cave-ins Triggered . | . . . . Exploration Rate (%) 49 | 5 98 66 27 Regions Visited 3 Branch Regions 2 Pre-discovered Areas . | . . . . Known Exits Taken . | . . . . Unknown Exits Taken 3 | 1 1 1 . Scrap Searched 1 | . . 1 . Spaces Dug 4 | . . 4 . Terrain Destroyed 4 | . . 4 . Melee . | . . . . Projectile . | . . . . AOE 4 | . . 4 . Terrain Rammed . | . . . . Walls Destroyed . | . . . . Machines Disabled . | . . . . Actions | -11 -10 -10 -10 --------- Run | Scr Mat Min Exi Total 1832 | 69 1194 488 81 Wait 81 | . 73 8 . Move 1588 | 50 1004 463 71 Hop . | . . . . Pick Up 37 | 7 26 4 . Fast Attach 11 | 7 3 1 . Attach 7 | . 4 1 2 Detach . | . . . . Swap 12 | . 9 2 1 Drop 21 | . 17 4 . Fire 75 | 5 58 5 7 Melee . | . . . . Ram . | . . . . Kick . | . . . . Crush . | . . . . Escape Stasis . | . . . . Rewire . | . . . . Trap . | . . . . Miscellaneous . | . . . . Route ------- -11/Scrapyard -10/Materials (discovered 5 exits: [*Mat x3] / [*Min x2]) -10/Mines (discovered 2 exits: [*Mat] / [*Exi]) -10/Exiles History --------- Turn | Location | Event 11 | -11/Scrapyard | Discovered new exit (range 15) 89 | -11/Scrapyard | Entered Materials 89 | -10/Materials | Discovered new exit (range 16) 295 | -10/Materials | Discovered new exit (range 16) 311 | -10/Materials | Build established: Mutant 475 | -10/Materials | Lost 3 parts (1p1n1w) 668 | -10/Materials | Discovered new exit (range 13) 1030 | -10/Materials | Repaired Med. Armor Plating 1036 | -10/Materials | Discovered new exit (range 16) 1199 | -10/Materials | Discovered new exit (range 16) 1391 | -10/Materials | Core integrity fell below 50% 1463 | -10/Materials | Entered Mines 1652 | -10/Mines | Discovered new exit (range 14) 1672 | -10/Mines | Received a Rocket Launcher from a helpful Derelict 1737 | -10/Mines | Learned location of 1 exit from Materials 1747 | -10/Mines | Deemed a non-threat by the Exiles lab entrance 1748 | -10/Mines | Discovered new exit (range 5) 1793 | -10/Mines | A weapon hastily lodged in a ceiling crevice suddenly fell to the ground 2073 | -10/Mines | Received a Mining Laser from a helpful Derelict 2191 | -10/Mines | Entered Exiles 2191 | -10/Exiles | Accompanied by 1 ally 2230 | -10/Exiles | Met 8R-AWN 2257 | -10/Exiles | Met EX-HEX 2294 | -10/Exiles | Attacked by the Exiles 2308 | -10/Exiles | Core integrity fell below 20% 2324 | -10/Exiles | Destroyed by 8R-AWN with 8R-AWN's Boregun Last Messages --------------- 02299_ as-82963 destroyed. 02300_ EX-BIN: "I just want to science!" 02301_ FY-IID(z) destroyed. 02305_ Penetrated by HV Slug. 02308_ Machine disabled. 02308_ Penetrated by HV Slug. 02309_ as-54283 destroyed. 02309_ Destroyed Asb. Hover Unit. 02312_ Penetrated by HV Slug. 02313_ System corrupted: FCS attempts to trigger Lgt. Cannon. 02313_ System corrupted: Lgt. Cannon misfires. 02314_ as-15646 destroyed. 02314_ Penetrated by HV Slug. 02314_ as-18127 destroyed. 02318_ Penetrated by HV Slug. 02320_ Lgt. Treads destroyed. 02320_ Penetrated by HV Slug. 02320_ Critical hit (Destroy). 02320_ Mni. Grenade Launcher destroyed. 02322_ Penetrated by HV Slug. Map ----- +----------------------------------------------------+ | ?????????????????????????????????????????????????? | | ?????????????????????????????????????????????????? | | ?????????????????????????????????????????????????? | | ?????????????????????????????????????????????????? | | ?????????????????????????????????????????????????? | | ?????????????????????????????????????????????????? | | ?????????????????????????????????????????????????? | | ??????????????? ????????????????????????????????? | | ???????????????" ???????????????????????????????? | | ??????????????#" ???????????????????????????????? | | ??????????????#" ??????????????????????????????? | | ?????????????##" ?????????????????????????????? | | ?????????????#"" ?????????????????????????????? | | ?????????????"" % ?????????????????????????????? | | ???????????"""" * #????????????????????????????? | | ?????????" " "" #????###########????????????? | | ????????"" " #####"""""""""##???????????? | | ????????" " """ """"##??????????? | | ??????? "" " #??????????? | | ??????? " """#??????????? | | ??????? a"#??????????? | | ??????? " "##?????????# | | ??????? "###???????# | | ???????? """""" ""#??????## | | ?????????????####""" "#????### | | ????????????????#####""" @ ##???# | | ????????????????????##"""g ##?## | | ?????????????????????#"" g ### | | ?????????????????????#"" | | ?????????????????????"""" | | ????????????????????" "" | | ???????????????????? #"""# | | ??????????????????? ###### | | ??????????????????? ##????? | | ??????????????????? ##?????? | | ??????????????????? "" " " ""#??????? | | ?????????????????????"" " " ""#" "##??????? | | ??????????????????????##""" """##"""""""##???????? | | ?????????????????????????#""""??#########????????? | | ?????????????????????????????????????????????????? | | ?????????????????????????????????????????????????? | | ?????????????????????????????????????????????????? | | ?????????????????????????????????????????????????? | | ?????????????????????????????????????????????????? | | ?????????????????????????????????????????????????? | | ?????????????????????????????????????????????????? | | ?????????????????????????????????????????????????? | | ?????????????????????????????????????????????????? | | ?????????????????????????????????????????????????? | | ?????????????????????????????????????????????????? | +----------------------------------------------------+ Best States ------------- Heat Dissipation 25 Energy Generation 14 Energy Capacity 280 Matter Stores 300 Matter Capacity 300 Sight Range 16 Terrain Scan Range 16 Terrain Scan Density 10 Evasion (%) 55 Targeting Accuracy 5 Recoil Reduction 2 Item Schematics ----------------- Hcp. Matter Pod | -10/Materials | Hacked Robot Schematics ------------------ None Fabricated ------------ Nothing Alien Tech Used ----------------- None Achievements -------------- None Challenges ------------ None Game ------ Seed SmartbombFortressChronowheel Manual? 0 Play Time 00:22:27 Cumulative 195.2 hours Start 2022.03.27 @ 16:48:49 End 2022.03.27 @ 17:11:45 Sessions 1 Manual Loads 0 Difficulty Rogue Special Mode None Game No. 183 Rogue 183 Adventurer 0 Explorer 0 Win Type - Total 0 Types 0/0/0/0/0/0/0/0/0 Lore% 41 Gallery% 48 Achievement% 36 Wizard Run 0 Options --------- ASCII 0 Keyboard 0 Movement Mouse Keybinds 0 Fullscreen 1 Font 16/SmallcapsGlow Map View 75x55 Tactical HUD 1 Map Filters NONE Filters NONE Steam 1 RUN: 3d97520f-f79d-4d80-a748-bba05511fe8e